Cogmind - Beta 9.6 @@@ ROGUE MODE // 2020.06.29 @ 11:57:58 Player: Granite Result: Destroyed by as-62539 with Assembled Heavy Rifle Performance ------------- Evolutions (0) 0 Regions Visited (2) 400 Robots Destroyed (10) 50 Value Destroyed (81) 81 Prototype IDs (0) 0 Alien Tech Used (0) 0 Bonus (0) 0 TOTAL SCORE: 531 Bonus ------- None Cogmind --------- Core Integrity 0/250 Matter 145/300 Energy 100/100 System Corruption 0% Temperature Cool (0) Movement Walking (120) Location -10/Mines Parts ------- > --- POWER (1) -------- (None) > --- PROPULSION (2) --- Flexi-carbon Leg > --- UTILITY (2) ------ Medium Storage Unit > --- WEAPON (2) ------- (None) > --- INVENTORY (8) ---- Ion Engine Light Ion Engine Medium Laser Assault Rifle Assault Rifle Peak State ------------ > --- POWER ------------ (None) > --- PROPULSION ------- Flexi-carbon Leg Flexi-carbon Leg > --- UTILITY ---------- Medium Storage Unit > --- WEAPON ----------- Assault Rifle Light Assault Rifle > --- INVENTORY -------- Ion Engine Light Ion Engine Medium Laser Assault Rifle Assault Rifle [Rating: 13] Favorites ----------- Power Light Ion Engine Engine Light Ion Engine Propulsion Light Treads Treads Light Treads Leg Flexi-carbon Leg Utility Medium Storage Unit Storage Medium Storage Unit Weapon Assault Rifle Ballistic Gun Assault Rifle Launcher Grenade Launcher Build | -11 -10 -10 ------- Run | Scr Mat Min Slots Evolved . | . . . Power . | . . . Propulsion . | . . . Utility . | . . . Weapon . | . . . Parts Attached 15 | 6 2 7 Power 3 | 1 . 2 Engine 3 | 1 . 2 Core . | . . . Reactor . | . . . Propulsion 4 | 2 . 2 Treads 2 | 2 . . Leg 2 | . . 2 Wheel . | . . . Hover . | . . . Flight . | . . . Utility 2 | 1 1 . Device . | . . . Storage 2 | 1 1 . Processor . | . . . Hackware . | . . . Protection . | . . . Artifact . | . . . Weapon 6 | 2 1 3 Energy Gun . | . . . Energy Cannon . | . . . Ballistic Gun 4 | 2 . 2 Ballistic Cannon . | . . . Launcher 2 | . 1 1 Special Weapon . | . . . Impact Weapon . | . . . Slashing Weapon . | . . . Piercing Weapon . | . . . Special Melee Weapon . | . . . Unidentified Prototypes . | . . . Parts Lost 8 | . . 8 Power 1 | . . 1 Propulsion 3 | . . 3 Utility . | . . . Weapon 4 | . . 4 Highest Loss Streak 8 | . . 8 Average Slot Usage (%) 80 | . 85 73 Engine 12 | . 14 11 Treads 23 | . 28 19 Leg 1 | . . 4 Storage 14 | . 14 14 Ballistic Gun 19 | . 25 13 Launcher 6 | . 2 12 Naked Turns . | . . . Heaviest Build 19 | 11 16 19 Greatest Support 40 | 40 40 40 Greatest Overweight (x) 3 | . . 3 Average Overweight (x) . | . . . Largest Inventory Capacity 10 | 6 10 8 Average Capacity 7 | 5 7 8 Most Carried 7 | 2 4 7 Average Carried 3 | 1 3 6 Final Capacity 8 | 6 8 8 Final Carried 5 | 2 4 5 Class Distribution -------------------- 100% | Mutant Dominant Class ---------------- Mutant | -10/Materials Mutant | -10/Mines Resources | -11 -10 -10 ----------- Run | Scr Mat Min Matter Collected 312 | 134 94 84 Remotely . | . . . Salvage Created 133 | . 94 39 Parts 2 | . 2 . Haulers Intercepted . | . . . Recyclers Shooed . | . . . Parts Field Recycled . | . . . Retrieved Matter . | . . . Parts Self-Destructed . | . . . Prevented . | . . . Kills | -11 -10 -10 ------- Run | Scr Mat Min Combat Hostiles Destroyed 10 | . 2 8 Guns 4 | . 2 2 AOE 6 | . . 6 Classes Destroyed 2 | . 1 1 Grunt 2 | . 2 . Assembled 8 | . . 8 Best Kill Streak 7 | . 2 7 Combat Bots Only 7 | . 2 7 Max Kills in Single Turn 3 | . 2 3 Gunslinging 1 | . 1 . Exploded 3 | . . 3 Melee . | . . . Uniques/NPCs Destroyed . | . . . Combat | -11 -10 -10 -------- Run | Scr Mat Min Damage Taken 1264 | . 308 956 Core 259 | . 69 190 Absorbed by Shields . | . . . Core Remaining (%) 100 | 100 . . Volleys Fired 28 | . 11 17 Largest 2 | . 2 2 Hottest 60 | . 40 60 Shots Fired 45 | . 22 23 Gun 39 | . 22 17 Cannon . | . . . Launcher 6 | . . 6 Special . | . . . Kinetic 39 | . 22 17 Thermal . | . . . Explosive 6 | . . 6 Electromagnetic . | . . . Robot Hit Streak 11 | . 11 6 Robot Miss Streak 3 | . 1 3 Penetration Max . | . . . Secondary Targets 1 | . 1 . Max Gunslinging Chain 1 | . 1 . Shots Hit Robots 34 | . 19 15 Core Hits 22 | . 5 17 Critical Hits . | . . . Critical Kills . | . . . Critical Parts Destroyed . | . . . Melee Attacks . | . . . Impact . | . . . Slashing . | . . . Piercing . | . . . Sneak Attacks . | . . . Combat Hostiles . | . . . Follow-up Attacks . | . . . Damage Inflicted 805 | . 236 569 Guns 373 | . 236 137 Cannons . | . . . Explosions 432 | . . 432 Melee . | . . . Ramming . | . . . Kinetic 373 | . 236 137 Thermal . | . . . Explosive 432 | . . 432 Electromagnetic . | . . . Impact . | . . . Slashing . | . . . Piercing . | . . . Highest Corruption . | . . . Average Corruption . | . . . Corruption Purged . | . . . Overload Shots . | . . . Overflow Damage 29 | . . 29 Projectiles . | . . . Explosions 29 | . . 29 Melee . | . . . Knockbacks . | . . . Impact . | . . . Kinetic . | . . . Secondary . | . . . Self-Inflicted Damage 78 | . . 78 Shots 3 | . . 3 Rammed . | . . . Targets Rammed . | . . . Kicked . | . . . Crushed . | . . . Highest Temperature 10 | . 9 10 Average Temperature 4 | . 4 7 Received Heat Transfer 191 | . 171 20 Siege Activations . | . . . Robots Corrupted . | . . . Combat Hostiles . | . . . Parts Fried . | . . . Impact Corruptions . | . . . Robots Melted . | . . . Combat Hostiles . | . . . Parts Melted . | . . . Heat Transferred . | . . . Parts Sabotaged . | . . . Parts Stolen . | . . . Parts Stripped . | . . . Power Chain Reactions . | . . . Missiles Intercepted . | . . . Alert | -11 -10 -10 ------- Run | Scr Mat Min Peak Influence 77 | . 77 45 Average Influence 21 | . 30 21 Maximum Alert Level . | . . . Low Security (%) 100 | 100 100 100 Level 1 . | . . . Level 2 . | . . . Level 3 . | . . . Level 4 . | . . . Level 5 . | . . . High Security . | . . . Max Security . | . . . Squads Dispatched . | . . . Investigation . | . . . Extermination . | . . . Reinforcement . | . . . Assault . | . . . Garrison . | . . . Intercept . | . . . Construction Impeded . | . . . Haulers Reinforced . | . . . Stealth | -11 -10 -10 --------- Run | Scr Mat Min Distress Signals . | . . . Communications Jammed . | . . . Distress Signals . | . . . Times Spotted 16 | . 4 12 Peak Tracking Total 6 | . 2 6 Tactical Retreats 1 | . . 1 Traps | -11 -10 -10 ------- Run | Scr Mat Min Traps Triggered . | . . . Indirectly . | . . . Trap Hack Attempts . | . . . Triggered . | . . . Disarmed . | . . . Reprogrammed . | . . . Reused . | . . . Traps Extracted . | . . . Installed . | . . . Triggered . | . . . Machines | -11 -10 -10 ---------- Run | Scr Mat Min Machines Disabled . | . . . Max in Single Turn . | . . . Machines Sabotaged . | . . . Garrisons Compromised . | . . . Overloaded Fab Kills . | . . . Fab Network Shutdowns . | . . . Hacking | -11 -10 -10 --------- Run | Scr Mat Min Machines Accessed 2 | . 2 . Terminals 2 | . 2 . Fabricators . | . . . Repair Stations . | . . . Recycling Units . | . . . Scanalyzers . | . . . Garrison Access . | . . . Total Hacks 4 | . 4 . Successful 4 | . 4 . Failed . | . . . Catastrophic . | . . . Database Lockouts . | . . . Manual . | . . . Terminals 4 | . 4 . Fabricators . | . . . Repair Stations . | . . . Recycling Units . | . . . Scanalyzers . | . . . Garrison Access . | . . . Terminal Hacks 4 | . 4 . Record 1 | . 1 . Locate Traps 1 | . 1 . Transport Status 1 | . 1 . Registered Components 1 | . 1 . Fabricator Hacks . | . . . Repair Station Hacks . | . . . Recycling Unit Hacks . | . . . Scanalyzer . | . . . Garrison Access Hacks . | . . . Unauthorized Hacks . | . . . Terminals . | . . . Fabricators . | . . . Repair Stations . | . . . Recycling Units . | . . . Scanalyzers . | . . . Garrison Access . | . . . Data Cores Recovered . | . . . Used . | . . . Hacking Detections . | . . . Full Trace Events . | . . . Feedback Events . | . . . Feedback Blocked . | . . . Robot Schematics Acquired . | . . . Robots Built . | . . . Matter . | . . . Time . | . . . Total Robot Build Rating . | . . . Part Schematics Acquired . | . . . Parts Built . | . . . Matter . | . . . Time . | . . . Total Part Build Rating . | . . . Parts Repaired . | . . . Time . | . . . Parts Recycled . | . . . Recycled Matter . | . . . Retrieved Matter . | . . . Retrieved Components . | . . . Parts Scanalyzed . | . . . Part Schematics Acquired . | . . . Parts Damaged . | . . . Bothacking | -11 -10 -10 ------------ Run | Scr Mat Min Used RIF Installer . | . . . Robots Hacked . | . . . Non-combat . | . . . Combat . | . . . Robot Hacks Applied . | . . . Relay Couplers Released . | . . . Robots Rewired . | . . . Allies Hacked . | . . . Hacks Repelled . | . . . Allies | -11 -10 -10 -------- Run | Scr Mat Min Total Allies . | . . . Largest Group . | . . . Highest-Rated Group . | . . . Highest-Rated Ally . | . . . Total Orders . | . . . Ally Attacks . | . . . Total Damage . | . . . Kills . | . . . Allies Corrupted . | . . . Allies Melted . | . . . Intel | -11 -10 -10 ------- Run | Scr Mat Min Robot Analysis Total . | . . . Derelict Logs Recovered . | . . . Drone Launches . | . . . Drone Recoveries . | . . . Exploration | -11 -10 -10 ------------- Run | Scr Mat Min Turns Passed 388 | 77 164 147 Spaces Moved 183 | 42 79 62 Core 7 | 5 . 2 Treads 166 | 37 79 50 Legs 10 | . . 10 Wheels . | . . . Hover . | . . . Flight . | . . . Fastest Speed 50 | 50 160 120 Average Speed 154 | 146 160 154 Slowest Speed 200 | 160 160 200 Overloaded Moves . | . . . Propulsion Burnouts . | . . . Robots Hopped . | . . . Cave-ins Triggered 1 | . . 1 Exploration Rate (%) 13 | 4 17 18 Regions Visited 2 Branch Regions 1 Pre-discovered Areas . | . . . Known Exits Taken . | . . . Unknown Exits Taken 2 | 1 1 . Scrap Searched 1 | . . 1 Spaces Dug . | . . . Terrain Destroyed 36 | . . 36 Melee . | . . . Projectile . | . . . AOE 36 | . . 36 Actions | -11 -10 -10 --------- Run | Scr Mat Min Total 243 | 57 95 91 Wait 2 | 2 . . Move 181 | 41 78 62 Hop . | . . . Pick Up 16 | 8 3 5 Fast Attach . | . . . Attach 11 | 6 1 4 Detach . | . . . Swap 4 | . 1 3 Drop 1 | . 1 . Fire 28 | . 11 17 Melee . | . . . Ram . | . . . Kick . | . . . Crush . | . . . Escape Stasis . | . . . Rewire . | . . . Trap . | . . . Miscellaneous . | . . . Route ------- -11/Scrapyard -10/Materials -10/Mines History --------- Turn | Location | Event 9 | -11/Scrapyard | Discovered new exit (range 14) 78 | -11/Scrapyard | Entered Materials 160 | -10/Materials | Discovered new exit (range 15) 242 | -10/Materials | Entered Mines 290 | -10/Mines | Assembled infested the area 295 | -10/Mines | Assisted by a Guerilla fighting off Assembled 312 | -10/Mines | Build established: Mutant 341 | -10/Mines | Core integrity fell below 50% 353 | -10/Mines | Crushed by falling debris 370 | -10/Mines | Core integrity fell below 20% 372 | -10/Mines | Destroyed 7 combat bots 389 | -10/Mines | Destroyed by as-62539 with Assembled Heavy Rifle Last Messages --------------- 00333_ Acquired 42 matter. 00333_ Grenade Launcher destroyed. 00339_ as-70555 destroyed. 00339_ R-06 Scavenger destroyed. 00345_ The unstable cave ceiling collapses. 00345_ Destroyed Asb. Hover Unit. 00347_ Grenade Launcher destroyed. 00351_ as-65043 destroyed. 00352_ Lgt. Treads destroyed. 00353_ The unstable cave ceiling collapses. 00353_ Crushed by falling debris. [Achievement: Unlikely Earthworm] 00353_ Lgt. Ion Engine destroyed. 00356_ Acquired Flexi-carbon Leg. 00377_ Flexi-carbon Leg destroyed. 00377_ Lgt. Assault Rifle destroyed. 00379_ Destroyed Asb. Hover Unit. 00383_ as-79610 destroyed. 00385_ Acquired 13 matter. 00385_ Assault Rifle destroyed. Map ----- +----------------------------------------------------+ | ?????????????????????## ##### ??????????? | | ??????????????????????# ##?????????##????????????? | | ??????????????????????# #????????????????????????? | | ??????????????????????# ######???????????????????? | | ??????????????????????# #???????????????????? | | ??????????????????????### ## #???????????????????? | | ????????????????????????# ## #???????????????????? | | ????????????????????????# ## #???????????????????? | | ???????????????????????## ## #???????????????????? | | ??????????????????????## ## #???????????????????? | | ?????????????????????## # ###### #????????????? | | ?????????????????????# #????????????? | | ????????????????????# ## #######????????????? | | ??????????????? ?# #??????????????????? | | ?????????????? #?# #??????????????????? | | ??????????????## ###??# #??????????????????? | | ???????????????# ??????# #??????????????????? | | ???????????????## ???????# #??????????????????? | | ????????????????### ????????# #######????????????? | | ??????????????????#?????????# #????????????? | | ????????????????????????????# ##### #????????????? | | ????????????????????????????# #??????????????????? | | ????????????????????????????# #??????????????????? | | ???????????????########?????# #??????????????????? | | ??????????????## # ####### #??????????????????? | | ?????????????## @ #??????????????????? | | ?????????????# a #########??????????????????? | | ?????????????## ## #####??????????????????????? | | ??????????????## % #???????????????????? | | ??????????????# #???????????????????? | | ??????????????## # #???????????????????? | | ???????????????## #???????????????????? | | ????????????????## #???????????????????? | | ?????????????????###%= #???????????????????? | | ???????????????????#! #??????????????????? | | ???????????????????## ## #?????????????????? | | ????????????????????? #?# ?????????????????? | | ????????????????????? #?? ??????????????????? | | ????????????????????? #??? ## ??????????????????? | | ????????????????????? #??? ##????????????????????? | | ?????????????????????##??????????????????????????? | | ?????????????????????????????????????????????????? | | ?????????????????????????????????????????????????? | | ?????????????????????????????????????????????????? | | ?????????????????????????????????????????????????? | | ?????????????????????????????????????????????????? | | ?????????????????????????????????????????????????? | | ?????????????????????????????????????????????????? | | ?????????????????????????????????????????????????? | | ?????????????????????????????????????????????????? | +----------------------------------------------------+ Best States ------------- Heat Dissipation 25 Energy Generation 10 Energy Capacity 250 Matter Stores 211 Matter Capacity 300 Sight Range 16 Terrain Scan Density 10 Evasion (%) 40 Recoil Reduction 2 Item Schematics ----------------- None Robot Schematics ------------------ None Fabricated ------------ Nothing Alien Tech Used ----------------- None Achievements -------------- Unlikely Earthworm Challenges ------------ None Game ------ Seed HardcellNetworkManipulator Manual? 0 Play Time 00:10:34 Cumulative 4.2 hours Start 2020.06.29 @ 11:23:33 End 2020.06.29 @ 11:57:58 Sessions 1 Manual Loads 0 Difficulty Rogue Special Mode None Game No. 5 Rogue 5 Adventurer 0 Explorer 0 Win Type - Total 0 Types 0/0/0/0/0/0/0 Lore% 2 Gallery% 10 Achievement% 10 Wizard Run 0 Options --------- ASCII 0 Keyboard 0 Movement Mouse Keybinds 0 Fullscreen 1 Font 24/Smallcaps Map View 76x50 Tactical HUD 1 Map Filters NONE Filters NONE Steam 1 RUN: 3e38192e-a446-4ceb-956b-55beb4616724